[Event "Gibraltar Masters 18th"]
[Site "Gibraltar"]
[Date "2020.01.22"]
[Round "2.16"]
[White "Abdumalik, Zhansaya"]
[Black "Tabatabaei, M.Amin"]
[Result "1-0"]
[ECO "B81"]
[WhiteElo "2471"]
[BlackElo "2638"]
[PlyCount "86"]
[EventDate "2020.01.21"]
[EventType "swiss"]
[EventRounds "10"]
[EventCountry "GGB"]
[SourceTitle "BritBase"]
[Source "John Saunders"]
[SourceDate "2021.06.05"]
[SourceVersion "1"]
[SourceVersionDate "2021.06.05"]
[SourceQuality "1"]
[TimeControl "40/100:0"]
[WhiteClock "0:08:02"]
[BlackClock "0:05:24"]

1. e4 {[%emt 0:00:00]} c5 {[%emt 0:00:00]} 2. Nf3 {[%emt 0:00:00]} d6 {[%emt 0:
00:00]} 3. d4 {[%emt 0:00:00]} cxd4 {[%emt 0:00:00]} 4. Nxd4 {[%emt 0:00:00]}
Nf6 {[%emt 0:00:00]} 5. Nc3 {[%emt 0:00:00]} a6 {[%emt 0:00:00]} 6. h3 {
[%emt 0:00:00]} e6 {[%emt 0:00:00]} 7. g4 {[%emt 0:00:00]} h6 {[%emt 0:00:00]}
8. Bg2 {[%emt 0:00:00]} Be7 {[%emt 0:00:00]} 9. b3 {[%emt 0:00:00]} Nc6 {
[%emt 0:00:00]} 10. Bb2 {[%emt 0:00:00]} Qc7 {[%emt 0:00:00]} 11. Qd2 {[%emt 0:
00:00]} Nxd4 {[%emt 0:00:00]} 12. Qxd4 {[%emt 0:00:00]} b5 {[%emt 0:00:00]} 13.
O-O-O {[%emt 0:00:00]} Bb7 {[%emt 0:00:00]} 14. Kb1 {[%emt 0:00:00]} Rc8 {
[%emt 0:00:00]} 15. f4 {[%emt 0:00:00]} e5 {[%emt 0:00:00]} 16. Qd2 {[%emt 0:
00:00]} exf4 {[%emt 0:00:00]} 17. Nd5 {[%emt 0:00:00]} Bxd5 {[%emt 0:00:00]}
18. exd5 {[%emt 0:00:00]} O-O {[%emt 0:00:00]} 19. Rde1 {[%emt 0:00:00]} Bd8 {
[%emt 0:00:00]} 20. Re2 {[%emt 0:00:00]} Nd7 {[%emt 0:00:00]} 21. Qxf4 {
[%emt 0:00:00]} Bf6 {[%emt 0:00:00]} 22. Bxf6 {[%emt 0:00:00]} Nxf6 {[%emt 0:
00:00]} 23. h4 {[%emt 0:00:00]} Rfe8 {[%emt 0:00:00]} 24. Rf2 {[%emt 0:00:00]}
Re5 {[%emt 0:00:00]} 25. g5 {[%emt 0:00:00]} Nh5 {[%emt 0:00:00]} 26. Qf3 {
[%emt 0:00:00]} g6 {[%emt 0:00:00]} 27. gxh6 {[%emt 0:00:00]} Qe7 {[%emt 0:00:
00]} 28. Bh3 {[%emt 0:00:00]} Rc7 {[%emt 0:00:00]} 29. Bg4 {[%emt 0:00:00]} Re3
{[%emt 0:00:00]} 30. Qd1 {[%emt 0:00:00]} Ng3 {[%emt 0:00:00]} 31. Rg1 {
[%emt 0:00:00]} Qxh4 {[%emt 0:00:00]} 32. Rf3 {[%emt 0:00:00]} Rcc3 {[%emt 0:
00:00]} 33. h7+ {[%emt 0:00:00]} Kxh7 {[%emt 0:00:00]} 34. Rgxg3 {[%emt 0:00:
00]} Qxg3 {[%emt 0:00:00]} 35. Rxg3 {[%emt 0:00:00]} Rxg3 {[%emt 0:00:00]} 36.
Qd4 {[%emt 0:00:00]} Rce3 {[%emt 0:00:00]} 37. Kb2 {[%emt 0:00:00]} Re5 {
[%emt 0:00:00]} 38. Qf4 {[%emt 0:00:00]} Rxg4 {[%emt 0:00:00]} 39. Qxg4 {
[%emt 0:00:00]} Rxd5 {[%emt 0:00:00]} 40. Qd7 {[%emt 0:00:00]} Kg7 {[%emt 0:00:
00]} 41. Qc6 {[%emt 0:00:00]} Rf5 {[%emt 0:00:00]} 42. Qxa6 {[%emt 0:00:00]} g5
{[%emt 0:00:00]} 43. Qxd6 {[%emt 0:00:00]} Rf4 {[%emt 0:00:00]} 1-0

[Event "Gibraltar Masters 18th"]
[Site "Gibraltar"]
[Date "2020.01.22"]
[Round "2.17"]
[White "Cramling, Pia"]
[Black "Paravyan, David"]
[Result "0-1"]
[ECO "D82"]
[WhiteElo "2470"]
[BlackElo "2629"]
[PlyCount "75"]
[EventDate "2020.01.21"]
[EventType "swiss"]
[EventRounds "10"]
[EventCountry "GGB"]
[SourceTitle "BritBase"]
[Source "John Saunders"]
[SourceDate "2021.06.05"]
[SourceVersion "1"]
[SourceVersionDate "2021.06.05"]
[SourceQuality "1"]
[TimeControl "40/100:0"]
[WhiteClock "0:00:51"]
[BlackClock "0:01:03"]

1. d4 {[%emt 0:00:00]} Nf6 {[%emt 0:00:00]} 2. c4 {[%emt 0:00:00]} g6 {[%emt 0:
00:00]} 3. Nc3 {[%emt 0:00:00]} d5 {[%emt 0:00:00]} 4. Bf4 {[%emt 0:00:00]} Bg7
{[%emt 0:00:00]} 5. e3 {[%emt 0:00:00]} c5 {[%emt 0:00:00]} 6. dxc5 {[%emt 0:
00:00]} Qa5 {[%emt 0:00:00]} 7. Rc1 {[%emt 0:00:00]} Nbd7 {[%emt 0:00:00]} 8.
Qa4 {[%emt 0:00:00]} Qxc5 {[%emt 0:00:00]} 9. b4 {[%emt 0:00:00]} Qc6 {[%emt 0:
00:00]} 10. Qxc6 {[%emt 0:00:00]} bxc6 {[%emt 0:00:00]} 11. cxd5 {[%emt 0:00:
00]} cxd5 {[%emt 0:00:00]} 12. Bb5 {[%emt 0:00:00]} Bb7 {[%emt 0:00:00]} 13.
Nf3 {[%emt 0:00:00]} O-O {[%emt 0:00:00]} 14. O-O {[%emt 0:00:00]} Rfc8 {
[%emt 0:00:00]} 15. Ne5 {[%emt 0:00:00]} Nb6 {[%emt 0:00:00]} 16. Na4 {[%emt 0:
00:00]} Ne4 {[%emt 0:00:00]} 17. Nc5 {[%emt 0:00:00]} g5 {[%emt 0:00:00]} 18.
Bg3 {[%emt 0:00:00]} Nxg3 {[%emt 0:00:00]} 19. hxg3 {[%emt 0:00:00]} Bxe5 {
[%emt 0:00:00]} 20. Nxb7 {[%emt 0:00:00]} Bc3 {[%emt 0:00:00]} 21. a3 {[%emt 0:
00:00]} Bb2 {[%emt 0:00:00]} 22. Rb1 {[%emt 0:00:00]} Rc2 {[%emt 0:00:00]} 23.
Na5 {[%emt 0:00:00]} Bxa3 {[%emt 0:00:42]} 24. Nc6 {[%emt 0:00:00]} a6 {
[%emt 0:00:24]} 25. Nd4 {[%emt 0:00:00]} Rb2 {[%emt 0:00:00]} 26. Bc6 {[%emt 0:
00:00]} Rb8 {[%emt 0:00:00]} 27. Ra1 {[%emt 0:00:19]} Bxb4 {[%emt 0:00:00]} 28.
Rxa6 {[%emt 0:00:00]} Bc5 {[%emt 0:00:00]} 29. Nf5 {[%emt 0:00:42]} e6 {
[%emt 0:00:00]} 30. Rc1 {[%emt 0:00:03]} Nc4 {[%emt 0:00:00]} 31. Ra8 {[%emt 0:
00:00]} Rxa8 {[%emt 0:00:00]} 32. Bxa8 {[%emt 0:00:00]} Rb8 {[%emt 0:00:00]}
33. Bc6 {[%emt 0:00:00]} Ba3 {[%emt 0:00:00]} 34. Rc3 {[%emt 0:00:00]} Bb4 {
[%emt 0:00:00]} 35. Rc2 {[%emt 0:00:00]} exf5 {[%emt 0:00:00]} 36. Bxd5 {
[%emt 0:00:00]} Ne5 {[%emt 0:00:00]} 37. f3 {[%emt 0:00:00]} Bd6 {[%emt 0:00:
00]} 38. Kf2 {[%emt 0:00:00]} 0-1

[Event "Gibraltar Masters 18th"]
[Site "Gibraltar"]
[Date "2020.01.22"]
[Round "2.18"]
[White "Paehtz, Elisabeth"]
[Black "Durarbayli, Vasif"]
[Result "0-1"]
[ECO "D02"]
[WhiteElo "2467"]
[BlackElo "2625"]
[PlyCount "109"]
[EventDate "2020.01.21"]
[EventType "swiss"]
[EventRounds "10"]
[EventCountry "GGB"]
[SourceTitle "BritBase"]
[Source "John Saunders"]
[SourceDate "2021.06.05"]
[SourceVersion "1"]
[SourceVersionDate "2021.06.05"]
[SourceQuality "1"]
[TimeControl "40/100:0"]
[WhiteClock "0:01:08"]
[BlackClock "1:10:22"]

1. d4 {[%emt 0:00:00]} Nf6 {[%emt 0:00:00]} 2. Nf3 {[%emt 0:00:00]} e6 {
[%emt 0:00:00]} 3. Bf4 {[%emt 0:00:00]} d5 {[%emt 0:00:00]} 4. e3 {[%emt 0:00:
00]} Bd6 {[%emt 0:00:00]} 5. Bg3 {[%emt 0:00:00]} c5 {[%emt 0:00:00]} 6. Nbd2 {
[%emt 0:00:00]} O-O {[%emt 0:00:00]} 7. Bxd6 {[%emt 0:00:00]} Qxd6 {[%emt 0:00:
00]} 8. dxc5 {[%emt 0:00:00]} Qxc5 {[%emt 0:00:00]} 9. c4 {[%emt 0:00:00]} Nc6
{[%emt 0:00:00]} 10. a3 {[%emt 0:00:00]} Rd8 {[%emt 0:00:00]} 11. cxd5 {
[%emt 0:00:00]} Nxd5 {[%emt 0:00:00]} 12. Rc1 {[%emt 0:00:00]} Qe7 {[%emt 0:00:
00]} 13. Bb5 {[%emt 0:00:00]} e5 {[%emt 0:00:00]} 14. Qc2 {[%emt 0:00:00]} Bd7
{[%emt 0:00:00]} 15. O-O {[%emt 0:00:00]} Ncb4 {[%emt 0:00:00]} 16. Qc4 {
[%emt 0:00:00]} Nb6 {[%emt 0:00:00]} 17. Qe2 {[%emt 0:00:00]} Bxb5 {[%emt 0:00:
00]} 18. Qxb5 {[%emt 0:00:00]} Nd3 {[%emt 0:00:00]} 19. Rc3 {[%emt 0:00:00]}
Rd5 {[%emt 0:00:00]} 20. Qb3 {[%emt 0:00:00]} Rad8 {[%emt 0:00:00]} 21. Ne4 {
[%emt 0:00:00]} h6 {[%emt 0:00:00]} 22. Ne1 {[%emt 0:00:00]} Nxe1 {[%emt 0:00:
00]} 23. Rxe1 {[%emt 0:00:00]} Qd7 {[%emt 0:00:00]} 24. Rcc1 {[%emt 0:00:00]}
Na4 {[%emt 0:00:00]} 25. Qc2 {[%emt 0:00:00]} b6 {[%emt 0:00:00]} 26. f3 {
[%emt 0:00:00]} Nc5 {[%emt 0:00:00]} 27. Nxc5 {[%emt 0:00:00]} Rxc5 {[%emt 0:
00:00]} 28. Qe2 {[%emt 0:00:00]} Rd5 {[%emt 0:00:00]} 29. Rc2 {[%emt 0:00:00]}
Rd3 {[%emt 0:00:00]} 30. e4 {[%emt 0:00:00]} Qa4 {[%emt 0:00:00]} 31. h3 {
[%emt 0:00:00]} Re3 {[%emt 0:00:00]} 32. Qxe3 {[%emt 0:00:00]} Qxc2 {[%emt 0:
00:00]} 33. Re2 {[%emt 0:00:00]} Qb1+ {[%emt 0:00:00]} 34. Kh2 {[%emt 0:00:00]}
Rd3 {[%emt 0:00:00]} 35. Qf2 {[%emt 0:00:00]} Rd1 {[%emt 0:00:18]} 36. Rd2 {
[%emt 0:00:00]} Rh1+ {[%emt 0:00:00]} 37. Kg3 {[%emt 0:00:00]} Qc1 {[%emt 0:00:
00]} 38. Qe3 {[%emt 0:00:00]} Kh7 {[%emt 0:00:00]} 39. Re2 {[%emt 0:00:00]} Qf1
{[%emt 0:00:00]} 40. Qf2 {[%emt 0:00:00]} Qd1 {[%emt 0:00:00]} 41. Qe3 {
[%emt 0:00:00]} g5 {[%emt 0:00:00]} 42. Rd2 {[%emt 0:00:00]} Qc1 {[%emt 0:00:
00]} 43. Re2 {[%emt 0:00:00]} Qf1 {[%emt 0:00:00]} 44. Rd2 {[%emt 0:00:00]} Kg6
{[%emt 0:00:00]} 45. Rd6+ {[%emt 0:00:00]} f6 {[%emt 0:00:00]} 46. Qd2 {
[%emt 0:00:00]} Qg1 {[%emt 0:00:00]} 47. Rxf6+ {[%emt 0:00:00]} Kh5 {[%emt 0:
00:00]} 48. Rxh6+ {[%emt 0:00:00]} Kxh6 {[%emt 0:00:00]} 49. Kg4 {[%emt 0:00:
00]} Qc5 {[%emt 0:00:00]} 50. Qxg5+ {[%emt 0:00:00]} Kh7 {[%emt 0:00:00]} 51.
Qf5+ {[%emt 0:02:37]} Kg7 {[%emt 0:00:00]} 52. Qd7+ {[%emt 0:00:00]} Kf6 {
[%emt 0:00:00]} 53. Qxa7 {[%emt 0:00:10]} Qf2 {[%emt 0:00:00]} 54. Kh5 {
[%emt 0:00:00]} Qe3 {[%emt 0:00:00]} 55. f4 {[%emt 0:00:00]} 0-1

[Event "Gibraltar Masters 18th"]
[Site "Gibraltar"]
[Date "2020.01.22"]
[Round "2.19"]
[White "Vocaturo, Daniele"]
[Black "Batsiashvili, Nino"]
[Result "0-1"]
[ECO "C78"]
[WhiteElo "2622"]
[BlackElo "2456"]
[PlyCount "132"]
[EventDate "2020.01.21"]
[EventType "swiss"]
[EventRounds "10"]
[EventCountry "GGB"]
[SourceTitle "BritBase"]
[Source "John Saunders"]
[SourceDate "2021.06.05"]
[SourceVersion "1"]
[SourceVersionDate "2021.06.05"]
[SourceQuality "1"]
[TimeControl "40/100:0"]
[WhiteClock "0:01:46"]
[BlackClock "0:23:38"]

1. e4 {[%emt 0:00:00]} e5 {[%emt 0:00:00]} 2. Nf3 {[%emt 0:00:00]} Nc6 {
[%emt 0:00:00]} 3. Bb5 {[%emt 0:00:00]} a6 {[%emt 0:00:00]} 4. Ba4 {[%emt 0:00:
00]} Nf6 {[%emt 0:00:00]} 5. O-O {[%emt 0:00:00]} Bc5 {[%emt 0:00:00]} 6. c3 {
[%emt 0:00:00]} O-O {[%emt 0:00:00]} 7. d4 {[%emt 0:00:00]} Ba7 {[%emt 0:00:00]
} 8. Bg5 {[%emt 0:00:00]} h6 {[%emt 0:00:00]} 9. Bh4 {[%emt 0:00:00]} exd4 {
[%emt 0:00:00]} 10. Re1 {[%emt 0:00:00]} d6 {[%emt 0:00:00]} 11. Bxc6 {[%emt 0:
00:00]} bxc6 {[%emt 0:00:00]} 12. Nxd4 {[%emt 0:00:00]} g5 {[%emt 0:00:00]} 13.
Bg3 {[%emt 0:00:00]} Bg4 {[%emt 0:00:00]} 14. Qd3 {[%emt 0:00:00]} Qd7 {
[%emt 0:00:00]} 15. Nd2 {[%emt 0:00:00]} Rfe8 {[%emt 0:00:00]} 16. Nc4 {
[%emt 0:00:00]} Nxe4 {[%emt 0:00:00]} 17. Rxe4 {[%emt 0:00:00]} Rxe4 {[%emt 0:
00:00]} 18. Qxe4 {[%emt 0:00:00]} d5 {[%emt 0:00:00]} 19. Qd3 {[%emt 0:00:00]}
dxc4 {[%emt 0:00:00]} 20. Qxc4 {[%emt 0:00:00]} Re8 {[%emt 0:00:00]} 21. h3 {
[%emt 0:00:00]} c5 {[%emt 0:00:00]} 22. Qxa6 {[%emt 0:00:00]} cxd4 {[%emt 0:00:
00]} 23. Qxa7 {[%emt 0:00:00]} d3 {[%emt 0:00:00]} 24. hxg4 {[%emt 0:00:00]} d2
{[%emt 0:00:00]} 25. f3 {[%emt 0:00:00]} d1=Q+ {[%emt 0:00:00]} 26. Rxd1 {
[%emt 0:00:00]} Qxd1+ {[%emt 0:00:00]} 27. Kh2 {[%emt 0:00:00]} Qf1 {[%emt 0:
00:00]} 28. Qg1 {[%emt 0:00:00]} Qxg1+ {[%emt 0:00:00]} 29. Kxg1 {[%emt 0:00:
00]} c5 {[%emt 0:00:00]} 30. Bd6 {[%emt 0:00:00]} c4 {[%emt 0:00:00]} 31. b3 {
[%emt 0:00:00]} Re6 {[%emt 0:00:00]} 32. Bc5 {[%emt 0:00:00]} Ra6 {[%emt 0:00:
00]} 33. bxc4 {[%emt 0:00:00]} Rxa2 {[%emt 0:00:00]} 34. Bd4 {[%emt 0:00:00]}
Kf8 {[%emt 0:00:00]} 35. Bf6 {[%emt 0:00:00]} Ra6 {[%emt 0:00:00]} 36. Bd4 {
[%emt 0:00:00]} Ke7 {[%emt 0:00:00]} 37. Kf2 {[%emt 0:00:00]} Rc6 {[%emt 0:00:
00]} 38. c5 {[%emt 0:00:00]} Re6 {[%emt 0:00:00]} 39. g3 {[%emt 0:00:00]} Kd7 {
[%emt 0:00:00]} 40. f4 {[%emt 0:00:00]} Kc6 {[%emt 0:00:00]} 41. f5 {[%emt 0:
00:00]} Re8 {[%emt 0:00:00]} 42. Kf3 {[%emt 0:02:33]} Kd5 {[%emt 0:00:00]} 43.
Bg7 {[%emt 0:00:00]} Rc8 {[%emt 0:00:00]} 44. Bd4 {[%emt 0:00:00]} Re8 {
[%emt 0:00:00]} 45. Be3 {[%emt 0:00:00]} Kc4 {[%emt 0:00:00]} 46. Bd4 {[%emt 0:
00:00]} Kd3 {[%emt 0:00:00]} 47. Bg7 {[%emt 0:00:00]} Rg8 {[%emt 0:00:00]} 48.
Bf6 {[%emt 0:00:00]} Rc8 {[%emt 0:00:00]} 49. Be7 {[%emt 0:00:00]} Rc6 {
[%emt 0:00:00]} 50. Bf8 {[%emt 0:00:00]} Kxc3 {[%emt 0:00:00]} 51. Ke4 {
[%emt 0:00:00]} Kc4 {[%emt 0:00:00]} 52. Ke5 {[%emt 0:00:00]} f6+ {[%emt 0:00:
00]} 53. Ke4 {[%emt 0:00:00]} Rc7 {[%emt 0:00:00]} 54. c6 {[%emt 0:00:00]} Rxc6
{[%emt 0:00:00]} 55. Bxh6 {[%emt 0:00:00]} Rc7 {[%emt 0:00:00]} 56. Bxg5 {
[%emt 0:00:00]} fxg5 {[%emt 0:00:00]} 57. f6 {[%emt 0:00:00]} Ra7 {[%emt 0:00:
00]} 58. Ke5 {[%emt 0:00:00]} Ra3 {[%emt 0:00:00]} 59. Ke4 {[%emt 0:00:02]} Ra1
{[%emt 0:00:00]} 60. Kf5 {[%emt 0:00:00]} Kd5 {[%emt 0:00:00]} 61. Kxg5 {
[%emt 0:00:00]} Ke6 {[%emt 0:00:00]} 62. Kg6 {[%emt 0:00:00]} Rg1 {[%emt 0:00:
00]} 63. f7 {[%emt 0:00:00]} Rf1 {[%emt 0:00:00]} 64. g5 {[%emt 0:00:00]} Rxf7
{[%emt 0:00:00]} 65. Kh6 {[%emt 0:00:00]} Rf3 {[%emt 0:00:00]} 66. g4 {[%emt 0:
00:00]} Ke5 {[%emt 0:00:20]} 0-1

[Event "Gibraltar Masters 18th"]
[Site "Gibraltar"]
[Date "2020.01.22"]
[Round "2.20"]
[White "Javakhishvili, Lela"]
[Black "Chigaev, Maksim"]
[Result "0-1"]
[ECO "E60"]
[WhiteElo "2463"]
[BlackElo "2616"]
[PlyCount "106"]
[EventDate "2020.01.21"]
[EventType "swiss"]
[EventRounds "10"]
[EventCountry "GGB"]
[SourceTitle "BritBase"]
[Source "John Saunders"]
[SourceDate "2021.06.05"]
[SourceVersion "1"]
[SourceVersionDate "2021.06.05"]
[SourceQuality "1"]
[TimeControl "40/100:0"]
[WhiteClock "0:15:14"]
[BlackClock "0:14:22"]

1. d4 {[%emt 0:00:00]} Nf6 {[%emt 0:00:00]} 2. c4 {[%emt 0:00:00]} g6 {[%emt 0:
00:00]} 3. Nf3 {[%emt 0:00:00]} Bg7 {[%emt 0:00:00]} 4. g3 {[%emt 0:00:00]} c5
{[%emt 0:00:00]} 5. d5 {[%emt 0:00:00]} b5 {[%emt 0:00:00]} 6. cxb5 {[%emt 0:
00:00]} Qa5+ {[%emt 0:00:00]} 7. Bd2 {[%emt 0:00:00]} Qxb5 {[%emt 0:00:00]} 8.
Nc3 {[%emt 0:00:00]} Qb6 {[%emt 0:00:00]} 9. Bg2 {[%emt 0:00:00]} d6 {[%emt 0:
00:00]} 10. O-O {[%emt 0:00:00]} Nbd7 {[%emt 0:00:00]} 11. Rb1 {[%emt 0:00:00]}
O-O {[%emt 0:00:00]} 12. b4 {[%emt 0:00:00]} cxb4 {[%emt 0:00:00]} 13. Na4 {
[%emt 0:00:00]} Qa6 {[%emt 0:00:00]} 14. Bxb4 {[%emt 0:00:00]} Nb6 {[%emt 0:00:
00]} 15. Nxb6 {[%emt 0:00:00]} axb6 {[%emt 0:00:00]} 16. Nd4 {[%emt 0:00:00]}
Qxa2 {[%emt 0:00:00]} 17. Nc6 {[%emt 0:00:00]} Re8 {[%emt 0:00:00]} 18. Bc3 {
[%emt 0:00:00]} Qc4 {[%emt 0:00:00]} 19. Rc1 {[%emt 0:00:00]} Qg4 {[%emt 0:00:
00]} 20. Qb3 {[%emt 0:00:00]} Qh5 {[%emt 0:00:00]} 21. Qb2 {[%emt 0:00:00]} Kf8
{[%emt 0:00:00]} 22. e4 {[%emt 0:00:00]} Qh6 {[%emt 0:00:00]} 23. Bd2 {[%emt 0:
00:00]} Qxh2+ {[%emt 0:00:00]} 24. Kxh2 {[%emt 0:00:00]} Ng4+ {[%emt 0:00:00]}
25. Kg1 {[%emt 0:00:00]} Bxb2 {[%emt 0:00:00]} 26. Rb1 {[%emt 0:00:00]} Ba3 {
[%emt 0:00:00]} 27. Bb4 {[%emt 0:00:00]} Ba6 {[%emt 0:00:00]} 28. Rfd1 {
[%emt 0:00:00]} Be2 {[%emt 0:00:00]} 29. Rd2 {[%emt 0:00:00]} Bxb4 {[%emt 0:00:
00]} 30. Nxb4 {[%emt 0:00:00]} Bc4 {[%emt 0:00:00]} 31. Nc6 {[%emt 0:00:00]} b5
{[%emt 0:00:00]} 32. Bf1 {[%emt 0:00:00]} Ra4 {[%emt 0:00:00]} 33. Bxc4 {
[%emt 0:00:00]} bxc4 {[%emt 0:00:00]} 34. Rc2 {[%emt 0:00:00]} Rea8 {[%emt 0:
00:00]} 35. f3 {[%emt 0:00:00]} Ra1 {[%emt 0:00:00]} 36. Rcc1 {[%emt 0:00:00]}
Rxb1 {[%emt 0:00:00]} 37. Rxb1 {[%emt 0:00:00]} Ne5 {[%emt 0:00:00]} 38. Nxe5 {
[%emt 0:00:00]} dxe5 {[%emt 0:00:00]} 39. Rc1 {[%emt 0:00:00]} Rc8 {[%emt 0:00:
00]} 40. Rc3 {[%emt 0:00:00]} Ke8 {[%emt 0:00:00]} 41. Kf2 {[%emt 0:00:00]} Kd7
{[%emt 0:00:00]} 42. Ke3 {[%emt 0:00:00]} e6 {[%emt 0:00:00]} 43. dxe6+ {
[%emt 0:00:00]} Kxe6 {[%emt 0:00:00]} 44. Kd2 {[%emt 0:00:00]} f5 {[%emt 0:00:
00]} 45. Kc2 {[%emt 0:00:00]} fxe4 {[%emt 0:00:00]} 46. fxe4 {[%emt 0:00:00]}
Kf6 {[%emt 0:00:00]} 47. Rf3+ {[%emt 0:00:00]} Kg5 {[%emt 0:00:00]} 48. Rf7 {
[%emt 0:00:00]} h5 {[%emt 0:00:00]} 49. Re7 {[%emt 0:00:00]} Rc5 {[%emt 0:00:
00]} 50. Kc3 {[%emt 0:00:00]} Kg4 {[%emt 0:00:00]} 51. Re6 {[%emt 0:00:00]} g5
{[%emt 0:00:00]} 52. Rg6 {[%emt 0:00:00]} Rc8 {[%emt 0:00:00]} 53. Rg7 {
[%emt 0:00:00]} Rd8 {[%emt 0:00:00]} 0-1

[Event "Gibraltar Masters 18th"]
[Site "Gibraltar"]
[Date "2020.01.22"]
[Round "2.21"]
[White "Kobalia, Mikhail"]
[Black "Mammadzada, Gunay"]
[Result "1-0"]
[ECO "B90"]
[WhiteElo "2609"]
[BlackElo "2455"]
[PlyCount "73"]
[EventDate "2020.01.21"]
[EventType "swiss"]
[EventRounds "10"]
[EventCountry "GGB"]
[SourceTitle "BritBase"]
[Source "John Saunders"]
[SourceDate "2021.06.05"]
[SourceVersion "1"]
[SourceVersionDate "2021.06.05"]
[SourceQuality "1"]
[TimeControl "40/100:0"]
[WhiteClock "0:04:41"]
[BlackClock "0:04:25"]

1. e4 {[%emt 0:00:00]} c5 {[%emt 0:00:00]} 2. Nf3 {[%emt 0:00:00]} d6 {[%emt 0:
00:00]} 3. d4 {[%emt 0:00:00]} cxd4 {[%emt 0:00:00]} 4. Nxd4 {[%emt 0:00:00]}
Nf6 {[%emt 0:00:00]} 5. Nc3 {[%emt 0:00:00]} a6 {[%emt 0:00:00]} 6. Be3 {
[%emt 0:00:00]} e5 {[%emt 0:00:00]} 7. Nb3 {[%emt 0:00:00]} Be6 {[%emt 0:00:00]
} 8. Qd2 {[%emt 0:00:00]} Nbd7 {[%emt 0:00:00]} 9. O-O-O {[%emt 0:00:00]} b5 {
[%emt 0:00:00]} 10. f3 {[%emt 0:00:00]} h5 {[%emt 0:00:00]} 11. Kb1 {[%emt 0:
00:00]} Be7 {[%emt 0:00:00]} 12. h4 {[%emt 0:00:00]} O-O {[%emt 0:00:00]} 13.
Bg5 {[%emt 0:00:00]} Re8 {[%emt 0:00:00]} 14. a3 {[%emt 0:00:00]} Rc8 {[%emt 0:
00:00]} 15. Be2 {[%emt 0:00:00]} Qb6 {[%emt 0:00:00]} 16. Nd5 {[%emt 0:00:00]}
Bxd5 {[%emt 0:00:00]} 17. exd5 {[%emt 0:00:00]} e4 {[%emt 0:00:00]} 18. Rhe1 {
[%emt 0:00:00]} Bf8 {[%emt 0:00:00]} 19. Be3 {[%emt 0:00:00]} Qc7 {[%emt 0:00:
00]} 20. f4 {[%emt 0:00:00]} Nb6 {[%emt 0:00:00]} 21. Bxb6 {[%emt 0:00:00]}
Qxb6 {[%emt 0:00:00]} 22. Qd4 {[%emt 0:00:00]} Qd8 {[%emt 0:00:00]} 23. c4 {
[%emt 0:00:00]} Qd7 {[%emt 0:00:00]} 24. cxb5 {[%emt 0:00:00]} axb5 {[%emt 0:
00:00]} 25. g3 {[%emt 0:00:00]} e3 {[%emt 0:00:00]} 26. Bd3 {[%emt 0:00:00]}
Ng4 {[%emt 0:00:00]} 27. Rc1 {[%emt 0:00:00]} Rb8 {[%emt 0:00:00]} 28. Na5 {
[%emt 0:00:00]} g6 {[%emt 0:00:00]} 29. Nc6 {[%emt 0:00:00]} Rb7 {[%emt 0:00:
00]} 30. Qb4 {[%emt 0:00:00]} Nf6 {[%emt 0:00:00]} 31. f5 {[%emt 0:00:00]} gxf5
{[%emt 0:00:00]} 32. Qf4 {[%emt 0:00:00]} Ne4 {[%emt 0:00:00]} 33. Rxe3 {
[%emt 0:00:00]} Kh7 {[%emt 0:00:00]} 34. Rxe4 {[%emt 0:00:00]} Bh6 {[%emt 0:00:
00]} 35. Re7 {[%emt 0:00:00]} Rxe7 {[%emt 0:00:00]} 36. Bxf5+ {[%emt 0:00:00]}
Kg8 {[%emt 0:00:00]} 37. Nxe7+ {[%emt 0:00:00]} 1-0

[Event "Gibraltar Masters 18th"]
[Site "Gibraltar"]
[Date "2020.01.22"]
[Round "2.22"]
[White "Buckels, Valentin"]
[Black "Yilmaz, Mustafa"]
[Result "0-1"]
[ECO "D78"]
[WhiteElo "2459"]
[BlackElo "2607"]
[PlyCount "58"]
[EventDate "2020.01.21"]
[EventType "swiss"]
[EventRounds "10"]
[EventCountry "GGB"]
[SourceTitle "BritBase"]
[Source "John Saunders"]
[SourceDate "2021.06.05"]
[SourceVersion "1"]
[SourceVersionDate "2021.06.05"]
[SourceQuality "1"]
[TimeControl "40/100:0"]
[WhiteClock "0:01:34"]
[BlackClock "0:16:28"]

1. d4 {[%emt 0:00:00]} g6 {[%emt 0:00:00]} 2. c4 {[%emt 0:00:00]} Bg7 {[%emt 0:
00:00]} 3. Nf3 {[%emt 0:00:00]} Nf6 {[%emt 0:00:00]} 4. g3 {[%emt 0:00:00]} O-O
{[%emt 0:00:00]} 5. Bg2 {[%emt 0:00:00]} c6 {[%emt 0:00:00]} 6. O-O {[%emt 0:
00:00]} d5 {[%emt 0:00:00]} 7. Nbd2 {[%emt 0:00:00]} Bf5 {[%emt 0:00:00]} 8. b3
{[%emt 0:00:00]} a5 {[%emt 0:00:00]} 9. Bb2 {[%emt 0:00:00]} a4 {[%emt 0:00:00]
} 10. Nh4 {[%emt 0:00:00]} Be6 {[%emt 0:00:00]} 11. e3 {[%emt 0:00:00]} Nbd7 {
[%emt 0:00:00]} 12. f4 {[%emt 0:00:00]} Bg4 {[%emt 0:00:00]} 13. Qc2 {[%emt 0:
00:00]} e6 {[%emt 0:00:00]} 14. Ndf3 {[%emt 0:00:00]} Ne4 {[%emt 0:00:00]} 15.
Ne5 {[%emt 0:00:00]} Nxe5 {[%emt 0:00:00]} 16. fxe5 {[%emt 0:00:00]} f5 {
[%emt 0:00:00]} 17. exf6 {[%emt 0:00:00]} Nxf6 {[%emt 0:00:00]} 18. Ba3 {
[%emt 0:00:00]} Rf7 {[%emt 0:00:00]} 19. Bb4 {[%emt 0:00:00]} Bh6 {[%emt 0:00:
00]} 20. Bd2 {[%emt 0:00:00]} Qe7 {[%emt 0:00:00]} 21. bxa4 {[%emt 0:00:00]}
Be2 {[%emt 0:00:00]} 22. Rfe1 {[%emt 0:00:00]} Bxc4 {[%emt 0:00:00]} 23. Nf3 {
[%emt 0:00:00]} Nd7 {[%emt 0:00:00]} 24. e4 {[%emt 0:00:00]} Bg7 {[%emt 0:00:
00]} 25. Bc3 {[%emt 0:00:00]} dxe4 {[%emt 0:00:00]} 26. Nd2 {[%emt 0:00:00]}
Bd3 {[%emt 0:00:00]} 27. Qb3 {[%emt 0:00:00]} Nc5 {[%emt 0:00:00]} 28. dxc5 {
[%emt 0:00:31]} Qxc5+ {[%emt 0:00:00]} 29. Kh1 {[%emt 0:00:00]} Qxc3 {[%emt 0:
00:00]} 0-1